Workbook

Sheet Saommaire
B3: Boite à moustaches
B4: Régression simple
B5: Cercle de corrélation
B6: Diagonalisation de matrice
B7: Etiquetage - Méthode 1
B8: Etiquetage - Méthode 2
B9: Histogramme

Sheet BAM
B3: Poids | C3: Longueur | D3: Largeur
B4: 65 | C4: 185 | D4: 114 | G4: =Tableau1[[#Headers],[Poids]] -> Poids | H4: =Tableau1[[#Headers],[Longueur]] -> Longueur | I4: =Tableau1[[#Headers],[Largeur]] -> Largeur
B5: 68 | C5: 180 | D5: 112 | F5: Q1 | G5: =QUARTILE(INDIRECT(G$4),1) -> 63 | H5: =QUARTILE(INDIRECT(H$4),1) -> 151.5 | I5: =QUARTILE(INDIRECT(I$4),1) -> 96
B6: 72 | C6: 178 | D6: 113 | F6: Min | G6: =MIN(INDIRECT(G$4)) -> 55 | H6: =MIN(INDIRECT(H$4)) -> 145 | I6: =MIN(INDIRECT(I$4)) -> 92
B7: 55 | C7: 148 | D7: 92 | F7: Moust.Inf | G7: =MIN(IF(INDIRECT(G$4)>G16,INDIRECT(G$4))) -> 55 | H7: =MIN(IF(INDIRECT(H$4)>H16,INDIRECT(H$4))) -> 145 | I7: =MIN(IF(INDIRECT(I$4)>I16,INDIRECT(I$4))) -> 92
B8: 64 | C8: 145 | D8: 93 | F8: Médiane | G8: =MEDIAN(INDIRECT(G$4)) -> 68 | H8: =MEDIAN(INDIRECT(H$4)) -> 160 | I8: =MEDIAN(INDIRECT(I$4)) -> 103
B9: 70 | C9: 161 | D9: 103 | F9: Moust.Sup | G9: =MAX(IF(INDIRECT(G$4)<G17,INDIRECT(G$4))) -> 80 | H9: =MAX(IF(INDIRECT(H$4)<H17,INDIRECT(H$4))) -> 198 | I9: =MAX(IF(INDIRECT(I$4)<I17,INDIRECT(I$4))) -> 114
B10: 66 | C10: 159 | D10: 101 | F10: Max | G10: =MAX(INDIRECT(G$4)) -> 93 | H10: =MAX(INDIRECT(H$4)) -> 198 | I10: =MAX(INDIRECT(I$4)) -> 130
B11: 74 | C11: 165 | D11: 107 | F11: Q3 | G11: =QUARTILE(INDIRECT(G$4),3) -> 71.5 | H11: =QUARTILE(INDIRECT(H$4),3) -> 172.5 | I11: =QUARTILE(INDIRECT(I$4),3) -> 107
B12: 75 | C12: 155 | D12: 102
B13: 70 | C13: 165 | D13: 105 | F13: Nb | G13: =COUNT(INDIRECT(G$4)) -> 23 | H13: =COUNT(INDIRECT(H$4)) -> 23 | I13: =COUNT(INDIRECT(I$4)) -> 23
B14: 93 | C14: 198 | D14: 130 | F14: Moy | G14: =AVERAGE(INDIRECT(G$4)) -> 68.34782609 | H14: =AVERAGE(INDIRECT(H$4)) -> 162.3043478 | I14: =AVERAGE(INDIRECT(I$4)) -> 103.4782609
B15: 64 | C15: 150 | D15: 96 | F15: Q3-Q1 | G15: =G11-G5 -> 8.5 | H15: =H11-H5 -> 21 | I15: =I11-I5 -> 11
B16: 60 | C16: 175 | D16: 107 | F16: Front.Basse | G16: =G5-1.5*(G11-G5) -> 50.25 | H16: =H5-1.5*(H11-H5) -> 120 | I16: =I5-1.5*(I11-I5) -> 79.5
B17: 62 | C17: 148 | D17: 94 | F17: Front.Haute | G17: =G11+1.5*(G11-G5) -> 84.25 | H17: =H11+1.5*(H11-H5) -> 204 | I17: =I11+1.5*(I11-I5) -> 123.5
B18: 70 | C18: 160 | D18: 103
B19: 80 | C19: 155 | D19: 104
B20: 61 | C20: 153 | D20: 96
B21: 60 | C21: 145 | D21: 92
B22: 62 | C22: 170 | D22: 105
B23: 68 | C23: 175 | D23: 110
B24: 70 | C24: 145 | D24: 95
B25: 72 | C25: 157 | D25: 102
B26: 71 | C26: 161 | D26: 104

Sheet Régression simple
L3: Données bruts | O3: Données centrées réduits
L5: X | M5: Y | O5: X' | P5: Y'
L6: 1 | M6: 0 | O6: =STANDARDIZE(L6,L$19,L$20) -> -1.593255014 | P6: =STANDARDIZE(M6,M$19,M$20) -> -1.170895881
L7: 2 | M7: 0 | O7: =STANDARDIZE(L7,L$19,L$20) -> -1.303572284 | P7: -1.170895881
K8: =(M8-M19)/M20 -> -0.8938136495 | L8: 3 | M8: 155 | O8: -1.013889554 | P8: -0.8938136495
L9: 4 | M9: 215 | O9: -0.7242068244 | P9: -0.7865560116
L10: 5 | M10: 215 | O10: -0.4345240946 | P10: -0.7865560116
L11: 6 | M11: 445 | O11: -0.1448413649 | P11: -0.3754017328
L12: 7 | M12: 445 | O12: 0.1448413649 | P12: -0.3754017328
L13: 8 | M13: 875 | O13: 0.4345240946 | P13: 0.3932780058
L14: 9 | M14: 1225 | O14: 0.7242068244 | P14: 1.01894756
L15: 10 | M15: 1375 | O15: 1.013889554 | P15: 1.287091655
L16: 11 | M16: 1455 | O16: 1.303572284 | P16: 1.430101839
L17: 12 | M17: 1455 | O17: 1.593255014 | P17: 1.430101839
K19: Moyenne | L19: =AVERAGE(L6:L17) -> 6.5 | M19: =AVERAGE(M6:M17) -> 655 | O19: =AVERAGE(O6:O17) -> 0 | P19: =AVERAGE(P6:P17) -> 0
K20: écart type | L20: =_xlfn.STDEV.P(L6:L17) -> 3.45205253 | M20: =_xlfn.STDEV.P(M6:M17) -> 559.400721 | O20: =_xlfn.STDEV.P(O6:O17) -> 1 | P20: =_xlfn.STDEV.P(P6:P17) -> 1
K22: a_y | L22: =_xlfn.COVARIANCE.P(L6:L17,M6:M17)/_xlfn.VAR.P(L6:L17) -> 156.1888112 | O22: =_xlfn.COVARIANCE.P(O6:O17,P6:P17)/_xlfn.VAR.P(O6:O17) -> 0.9638385517
K23: a_x | L23: =_xlfn.COVARIANCE.P(L6:L17,M6:M17)/_xlfn.VAR.P(M6:M17) -> 0.005947831645 | O23: =_xlfn.COVARIANCE.P(O6:O17,P6:P17)/_xlfn.VAR.P(P6:P17) -> 0.9638385517
K24: R^2 | L24: =L23*L22 -> 0.9289847537 | O24: =O23*O22 -> 0.9289847537

Sheet Cercle de corrélation
A3: Pour tracer le cercle de corrélation
B4: Angle | C4: Cosinus | D4: Sinus | H4: Coordonnées sur Axe 1 | I4: Coordonnées sur Axe 2
A5: 0 | B5: =(A5)*PI()/25 -> 0 | C5: =COS(B5) -> 1 | D5: =SIN(B5) -> 0 | G5: Variable 1 | H5: -0.11643 | I5: 0.80625
A6: =A5+1 -> 1 | B6: =(A6)*PI()/25 -> 0.1256637061 | C6: =COS(B6) -> 0.9921147013 | D6: =SIN(B6) -> 0.1253332336 | G6: Variable 2 | H6: 0.4695 | I6: 0.26237
A7: =A6+1 -> 2 | B7: 0.2513274123 | C7: 0.9685831611 | D7: 0.2486898872
A8: 3 | B8: 0.3769911184 | C8: 0.9297764859 | D8: 0.3681245527 | H8: 0 | I8: 0
A9: 4 | B9: 0.5026548246 | C9: 0.87630668 | D9: 0.4817536741
A10: 5 | B10: 0.6283185307 | C10: 0.8090169944 | D10: 0.5877852523
A11: 6 | B11: 0.7539822369 | C11: 0.7289686274 | D11: 0.6845471059
A12: 7 | B12: 0.879645943 | C12: 0.6374239897 | D12: 0.7705132428
A13: 8 | B13: 1.005309649 | C13: 0.535826795 | D13: 0.8443279255
A14: 9 | B14: 1.130973355 | C14: 0.4257792916 | D14: 0.9048270525
A15: 10 | B15: 1.256637061 | C15: 0.3090169944 | D15: 0.9510565163
A16: 11 | B16: 1.382300768 | C16: 0.1873813146 | D16: 0.9822872507
A17: 12 | B17: 1.507964474 | C17: 0.06279051953 | D17: 0.9980267284
A18: 13 | B18: 1.63362818 | C18: -0.06279051953 | D18: 0.9980267284
A19: 14 | B19: 1.759291886 | C19: -0.1873813146 | D19: 0.9822872507
A20: 15 | B20: 1.884955592 | C20: -0.3090169944 | D20: 0.9510565163
A21: 16 | B21: 2.010619298 | C21: -0.4257792916 | D21: 0.9048270525
A22: 17 | B22: 2.136283004 | C22: -0.535826795 | D22: 0.8443279255
A23: 18 | B23: 2.261946711 | C23: -0.6374239897 | D23: 0.7705132428
A24: 19 | B24: 2.387610417 | C24: -0.7289686274 | D24: 0.6845471059
A25: 20 | B25: 2.513274123 | C25: -0.8090169944 | D25: 0.5877852523
A26: 21 | B26: 2.638937829 | C26: -0.87630668 | D26: 0.4817536741
A27: 22 | B27: 2.764601535 | C27: -0.9297764859 | D27: 0.3681245527
A28: 23 | B28: 2.890265241 | C28: -0.9685831611 | D28: 0.2486898872
A29: 24 | B29: 3.015928947 | C29: -0.9921147013 | D29: 0.1253332336
A30: 25 | B30: 3.141592654 | C30: -1 | D30: 1.225148455e-16
A31: 26 | B31: 3.26725636 | C31: -0.9921147013 | D31: -0.1253332336
A32: 27 | B32: 3.392920066 | C32: -0.9685831611 | D32: -0.2486898872
A33: 28 | B33: 3.518583772 | C33: -0.9297764859 | D33: -0.3681245527
A34: 29 | B34: 3.644247478 | C34: -0.87630668 | D34: -0.4817536741
A35: 30 | B35: 3.769911184 | C35: -0.8090169944 | D35: -0.5877852523
A36: 31 | B36: 3.89557489 | C36: -0.7289686274 | D36: -0.6845471059
A37: 32 | B37: 4.021238597 | C37: -0.6374239897 | D37: -0.7705132428
A38: 33 | B38: 4.146902303 | C38: -0.535826795 | D38: -0.8443279255
A39: 34 | B39: 4.272566009 | C39: -0.4257792916 | D39: -0.9048270525
A40: 35 | B40: 4.398229715 | C40: -0.3090169944 | D40: -0.9510565163
A41: 36 | B41: 4.523893421 | C41: -0.1873813146 | D41: -0.9822872507
A42: 37 | B42: 4.649557127 | C42: -0.06279051953 | D42: -0.9980267284
A43: 38 | B43: 4.775220833 | C43: 0.06279051953 | D43: -0.9980267284
A44: 39 | B44: 4.90088454 | C44: 0.1873813146 | D44: -0.9822872507
A45: 40 | B45: 5.026548246 | C45: 0.3090169944 | D45: -0.9510565163
A46: 41 | B46: 5.152211952 | C46: 0.4257792916 | D46: -0.9048270525
A47: 42 | B47: 5.277875658 | C47: 0.535826795 | D47: -0.8443279255
A48: 43 | B48: 5.403539364 | C48: 0.6374239897 | D48: -0.7705132428
A49: 44 | B49: 5.52920307 | C49: 0.7289686274 | D49: -0.6845471059
A50: 45 | B50: 5.654866776 | C50: 0.8090169944 | D50: -0.5877852523
A51: 46 | B51: 5.780530483 | C51: 0.87630668 | D51: -0.4817536741
A52: 47 | B52: 5.906194189 | C52: 0.9297764859 | D52: -0.3681245527
A53: 48 | B53: 6.031857895 | C53: 0.9685831611 | D53: -0.2486898872
A54: 49 | B54: 6.157521601 | C54: 0.9921147013 | D54: -0.1253332336
A55: 50 | B55: 6.283185307 | C55: 1 | D55: -2.45029691e-16

Sheet Diagonalisation Matrice
B3: Matrice symétrique (exemple : matrice de corrélation) | J3: Vecteurs propres et valeurs propres de la matrice
C4: MI70 | D4: MI80 | E4: MI82 | F4: MI86 | G4: MI88 | J4: F1 | K4: F2 | L4: F3 | M4: F4 | N4: F5
B5: MI70 | C5: 1 | D5: 0.9132245078 | E5: 0.8744718471 | F5: 0.8079925591 | G5: 0.8257543172 | J5: =DIAGSYM(C5:G9,TRUE) -> 0.4191483638 | K5: 0.8609769288 | L5: -0.02115105307 | M5: 0.1377081226 | N5: 0.2522349501
B6: MI80 | C6: 0.9132245078 | D6: 1 | E6: 0.9922250457 | F6: 0.9757230239 | G6: 0.9610356729 | J6: 0.4602438696 | K6: 0.02696973908 | L6: 0.2119587237 | M6: 0.03973069478 | N6: -0.8607805697
B7: MI82 | C7: 0.8744718471 | D7: 0.9922250457 | E7: 1 | F7: 0.9789867855 | G7: 0.9757661517 | J7: 0.458504566 | K7: -0.1462538968 | L7: 0.009501446511 | M7: -0.8525586886 | N7: 0.2035602849
B8: MI86 | C8: 0.8079925591 | D8: 0.9757230239 | E8: 0.9789867855 | F8: 1 | G8: 0.9509355653 | J8: 0.4485622692 | K8: -0.3831583412 | L8: 0.579131477 | M8: 0.4063454608 | N8: 0.3891939936
B9: MI88 | C9: 0.8257543172 | D9: 0.9610356729 | E9: 0.9757661517 | F9: 0.9509355653 | G9: 1 | J9: 0.4483923318 | K9: -0.2996512047 | L9: -0.7868561414 | M9: 0.2957786231 | N9: 0.05025521407
I10: λ | J10: 4.707403716 | K10: 0.2330888614 | L10: 0.05164087457 | M10: 0.007386490373 | N10: 0.0004800580449

Sheet Etiquetage 1
C4: F1 | D4: F2
B5: PA05 | C5: 0.6747519289 | D5: -0.5900414797
B6: PA07 | C6: 4.521651806 | D6: -0.3813615928
B7: PA11 | C7: -1.854943167 | D7: -0.271039639
B8: PA12 | C8: -1.608016622 | D8: -0.1236203435
B9: PA14 | C9: -0.6151609056 | D9: -0.102459524
B10: PA15 | C10: -0.2558957096 | D10: 0.1585519576
B11: PA16 | C11: 1.795497982 | D11: 1.095855253
B12: PA20 | C12: -2.657885313 | D12: 0.2141153684

Sheet Etiquetage 2
B2: nom | C2: x | D2: y
B3: a | C3: 5 | D3: 12
B4: b | C4: 4 | D4: 15
B5: c | C5: 5 | D5: 16
B6: quatre | C6: 7 | D6: 14
B7: cinq | C7: 3.5 | D7: 19
B8: six | C8: 9 | D8: 12
B9: sept | C9: 1 | D9: 10
A11: Construire un nuage de points avec des étiquettes :
A13: Le tableau de données doit être présenté comme ci-dessus avec les noms des lignes et des colonnes dans la première ligne et la première colonne.
A14: Après avoir ouvert cette feuille macro, se placer dans la feuille où se trouvent les données à représenter, | G14: (Ici, toute la partie encadrée)
A15: Sélectionner tout le tableau, y compris la ligne et la colonne des noms.
A16: Appuyer sur CTRL-g : le graphique est tracé dans la page active.
A18: Remarques : les échelles sont fixées d'après les valeurs minimum et maximum des variables x et y.
A19: De même la position des étiquettes est optimisée pour permettre une meilleure lecture.
A21: Ajouter des étiquettes à un nuage de points :
A23: Cela se fait en deux étapes :
B24: Sélectionner la plage contenant les étiquettes : cela peut être une ligne ou une colonne contenant le même nombre d'étiquettes que la série déjà représentée.
B25: L'enregistrer en appuyant sur CTL-n
B27: Sélectionner sur le graphique la série des points.
B28: Appuyer sur CTRL-e

Sheet Histogramme_Entrée
A1: Valeurs de la variable | C1: Limites des classes | E1: Type d'intervalle | F1: ] | Q1: Bornes | R1: Effectif cumulé | S1: Effectif
A2: 0.27 | C2: 0 | F2: =IF($F$1="]","",IF($F$1="[","","^")) ->  | Q2: =C2 -> 0 | R2: =COUNTIF(A:A,$P$3&Q2) -> 0 | S2: =R3-R2 -> 11
A3: 12.85 | C3: 0.5 | F3: =IF(F2="^","|","") ->  | P3: =IF(F1="]","<=","<") -> <= | Q3: 0.5 | R3: 11 | S3: =IF(R4>0,R4-R3,0) -> 14
A4: 7.92 | C4: 2 | F4: =IF(F2="^","Entrez le signe crochet ] ou [","") ->  | Q4: 2 | R4: 25 | S4: 21
A5: 3.83 | C5: 5 | Q5: 5 | R5: 46 | S5: 9
A6: 3.7 | C6: 10 | Q6: 10 | R6: 55 | S6: 7
A7: 2.19 | C7: 20 | Q7: 20 | R7: 62 | S7: 3
A8: 3.5 | C8: 30 | Q8: 30 | R8: 65 | S8: 0
A9: 2.69 | Q9: 0 | R9: 0 | S9: =IF(R10>R9,R10-R9,0) -> 0
A10: 6.99 | Q10: 0 | R10: 0 | S10: =IF(R11>R10,R11-R10,0) -> 0
A11: 0.09 | Q11: 0 | R11: 0 | S11: 0
A12: 0.88 | Q12: 0 | R12: 0 | S12: 0
A13: 0.16 | Q13: 0 | R13: 0 | S13: 0
A14: 0.69 | Q14: 0 | R14: 0 | S14: 0
A15: 22.1 | Q15: 0 | R15: 0 | S15: 0
A16: 1.55 | Q16: 0 | R16: 0 | S16: 0
A17: 1.2 | Q17: 0 | R17: 0 | S17: 0
A18: 0.48 | Q18: 0 | R18: 0 | S18: 0
A19: 8.76 | Q19: 0 | R19: 0 | S19: 0
A20: 21.97 | Q20: 0 | R20: 0 | S20: 0
A21: 3.96 | Q21: 0 | R21: 0 | S21: 0
A22: 2.32 | Q22: 0 | R22: 0 | S22: 0
A23: 11 | Q23: 0 | R23: 0 | S23: 0
A24: 11.88 | Q24: 0 | R24: 0 | S24: 0
A25: 15.16 | Q25: 0 | R25: 0 | S25: 0
A26: 1.71 | Q26: 0 | R26: 0 | S26: 0
A27: 1.4 | Q27: 0 | R27: 0 | S27: 0
A28: 0.06 | Q28: 0 | R28: 0 | S28: 0
A29: 0.55 | Q29: 0 | R29: 0 | S29: 0
A30: 19.92 | Q30: 0 | R30: 0 | S30: 0
A31: 0.01 | Q31: 0 | R31: 0 | S31: 0
A32: 4.18 | Q32: 0 | R32: 0 | S32: 0
A33: 14.15 | Q33: 0 | R33: 0 | S33: =IF(R34>0,R34-R33,0) -> 0
A34: 2.89
A35: 27.25
A36: 4.97
A37: 3.54
A38: 18.52
A39: 7.98
A40: 0.32
A41: 0.27
A42: 2.7
A43: 3.2
A44: 2.06
A45: 1.2
A46: 2.58
A47: 6.4
A48: 0.52
A49: 4.95
A50: 1.43
A51: 0.87
A52: 0.28
A53: 6.54
A54: 1.14
A55: 4.72
A56: 2.75
A57: 1.43
A58: 0.04
A59: 1.32
A60: 5.93
A61: 4.79
A62: 3.12
A63: 7.48
A64: 3.59
A65: 0.08
A66: 5.47

Sheet Histogramme_Fréquences
A2: Borne | B2: Effectif | C2: Fréquence | D2: Densité
A3: =Histogramme_Entrée!C2 -> 0 | B3: =Histogramme_Entrée!S2 -> 11 | C3: =B3/$B$36 -> 0.1692307692 | D3: =IF(B3>0,C3/(A4-A3),0) -> 0.3384615385 | U3: x | Y3: y
A4: =Histogramme_Entrée!C3 -> 0.5 | B4: =Histogramme_Entrée!S3 -> 14 | C4: =B4/$B$36 -> 0.2153846154 | D4: =IF(B4>0,C4/(A5-A4),0) -> 0.1435897436 | U4: 0 | V4: =A3 -> 0 | W4: =V4 -> 0 | Y4: 0 | Z4: 0 | AA4: =D3 -> 0.3384615385
A5: =Histogramme_Entrée!C4 -> 2 | B5: =Histogramme_Entrée!S4 -> 21 | C5: 0.3230769231 | D5: =IF(B5>0,C5/(A6-A5),0) -> 0.1076923077 | U5: =V5 -> 0.5 | V5: =A4 -> 0.5 | W5: =V5 -> 0.5 | Y5: =D3 -> 0.3384615385 | Z5: 0 | AA5: =D4 -> 0.1435897436
A6: =Histogramme_Entrée!C5 -> 5 | B6: =Histogramme_Entrée!S5 -> 9 | C6: 0.1384615385 | D6: 0.02769230769 | U6: 2 | V6: 2 | W6: 2 | Y6: =D4 -> 0.1435897436 | Z6: 0 | AA6: 0.1076923077
A7: =Histogramme_Entrée!C6 -> 10 | B7: =Histogramme_Entrée!S6 -> 7 | C7: 0.1076923077 | D7: 0.01076923077 | U7: 5 | V7: 5 | W7: 5 | Y7: 0.1076923077 | Z7: 0 | AA7: 0.02769230769
A8: =Histogramme_Entrée!C7 -> 20 | B8: =Histogramme_Entrée!S7 -> 3 | C8: 0.04615384615 | D8: 0.004615384615 | U8: 10 | V8: 10 | W8: 10 | Y8: 0.02769230769 | Z8: 0 | AA8: 0.01076923077
A9: =Histogramme_Entrée!C8 -> 30 | B9: =Histogramme_Entrée!S8 -> 0 | C9: 0 | D9: 0 | U9: 20 | V9: 20 | W9: 20 | Y9: 0.01076923077 | Z9: 0 | AA9: 0.004615384615
A10: =Histogramme_Entrée!C9 -> 0 | B10: =Histogramme_Entrée!S9 -> 0 | C10: 0 | D10: 0 | U10: 30 | V10: 30 | W10: 30 | Y10: 0.004615384615 | Z10: 0 | AA10: 0
A11: =Histogramme_Entrée!C10 -> 0 | B11: =Histogramme_Entrée!S10 -> 0 | C11: 0 | D11: =IF(B11>0,C11/(A12-A11),0) -> 0 | U11: 0 | V11: 0 | W11: 0 | Y11: 0 | Z11: 0 | AA11: 0
A12: =Histogramme_Entrée!C11 -> 0 | B12: =Histogramme_Entrée!S11 -> 0 | C12: 0 | D12: 0 | U12: 0 | V12: 0 | W12: 0 | Y12: 0 | Z12: 0 | AA12: 0
A13: =Histogramme_Entrée!C12 -> 0 | B13: =Histogramme_Entrée!S12 -> 0 | C13: 0 | D13: 0 | U13: 0 | V13: 0 | W13: 0 | Y13: 0 | Z13: 0 | AA13: 0
A14: =Histogramme_Entrée!C13 -> 0 | B14: =Histogramme_Entrée!S13 -> 0 | C14: 0 | D14: 0 | U14: 0 | V14: 0 | W14: 0 | Y14: 0 | Z14: 0 | AA14: 0
A15: =Histogramme_Entrée!C14 -> 0 | B15: =Histogramme_Entrée!S14 -> 0 | C15: 0 | D15: 0 | U15: 0 | V15: 0 | W15: 0 | Y15: 0 | Z15: 0 | AA15: 0
A16: =Histogramme_Entrée!C15 -> 0 | B16: =Histogramme_Entrée!S15 -> 0 | C16: 0 | D16: 0 | U16: 0 | V16: 0 | W16: 0 | Y16: 0 | Z16: 0 | AA16: 0
A17: =Histogramme_Entrée!C16 -> 0 | B17: =Histogramme_Entrée!S16 -> 0 | C17: 0 | D17: 0 | U17: 0 | V17: 0 | W17: 0 | Y17: 0 | Z17: 0 | AA17: 0
A18: =Histogramme_Entrée!C17 -> 0 | B18: =Histogramme_Entrée!S17 -> 0 | C18: 0 | D18: 0 | U18: 0 | V18: 0 | W18: 0 | Y18: 0 | Z18: 0 | AA18: 0
A19: =Histogramme_Entrée!C18 -> 0 | B19: =Histogramme_Entrée!S18 -> 0 | C19: 0 | D19: 0 | U19: 0 | V19: 0 | W19: 0 | Y19: 0 | Z19: 0 | AA19: 0
A20: =Histogramme_Entrée!C19 -> 0 | B20: =Histogramme_Entrée!S19 -> 0 | C20: 0 | D20: 0 | U20: 0 | V20: 0 | W20: 0 | Y20: 0 | Z20: 0 | AA20: 0
A21: =Histogramme_Entrée!C20 -> 0 | B21: =Histogramme_Entrée!S20 -> 0 | C21: 0 | D21: 0 | U21: 0 | V21: 0 | W21: 0 | Y21: 0 | Z21: 0 | AA21: 0
A22: =Histogramme_Entrée!C21 -> 0 | B22: =Histogramme_Entrée!S21 -> 0 | C22: 0 | D22: 0 | U22: 0 | V22: 0 | W22: 0 | Y22: 0 | Z22: 0 | AA22: 0
A23: =Histogramme_Entrée!C22 -> 0 | B23: =Histogramme_Entrée!S22 -> 0 | C23: 0 | D23: 0 | U23: 0 | V23: 0 | W23: 0 | Y23: 0 | Z23: 0 | AA23: 0
A24: =Histogramme_Entrée!C23 -> 0 | B24: =Histogramme_Entrée!S23 -> 0 | C24: 0 | D24: 0 | U24: 0 | V24: 0 | W24: 0 | Y24: 0 | Z24: 0 | AA24: 0
A25: =Histogramme_Entrée!C24 -> 0 | B25: =Histogramme_Entrée!S24 -> 0 | C25: 0 | D25: 0 | U25: 0 | V25: 0 | W25: 0 | Y25: 0 | Z25: 0 | AA25: 0
A26: =Histogramme_Entrée!C25 -> 0 | B26: =Histogramme_Entrée!S25 -> 0 | C26: 0 | D26: 0 | U26: 0 | V26: 0 | W26: 0 | Y26: 0 | Z26: 0 | AA26: 0
A27: =Histogramme_Entrée!C26 -> 0 | B27: =Histogramme_Entrée!S26 -> 0 | C27: 0 | D27: 0 | U27: 0 | V27: 0 | W27: 0 | Y27: 0 | Z27: 0 | AA27: 0
A28: =Histogramme_Entrée!C27 -> 0 | B28: =Histogramme_Entrée!S27 -> 0 | C28: 0 | D28: 0 | U28: 0 | V28: 0 | W28: 0 | Y28: 0 | Z28: 0 | AA28: 0
A29: =Histogramme_Entrée!C28 -> 0 | B29: =Histogramme_Entrée!S28 -> 0 | C29: 0 | D29: 0 | U29: 0 | V29: 0 | W29: 0 | Y29: 0 | Z29: 0 | AA29: 0
A30: =Histogramme_Entrée!C29 -> 0 | B30: =Histogramme_Entrée!S29 -> 0 | C30: 0 | D30: 0 | U30: 0 | V30: 0 | W30: 0 | Y30: 0 | Z30: 0 | AA30: 0
A31: =Histogramme_Entrée!C30 -> 0 | B31: =Histogramme_Entrée!S30 -> 0 | C31: 0 | D31: 0 | U31: 0 | V31: 0 | W31: 0 | Y31: 0 | Z31: 0 | AA31: 0
A32: =Histogramme_Entrée!C31 -> 0 | B32: =Histogramme_Entrée!S31 -> 0 | C32: 0 | D32: 0 | U32: 0 | V32: 0 | W32: 0 | Y32: 0 | Z32: 0 | AA32: 0
A33: =Histogramme_Entrée!C32 -> 0 | B33: =Histogramme_Entrée!S32 -> 0 | C33: 0 | D33: 0 | U33: 0 | V33: 0 | W33: 0 | Y33: 0 | Z33: 0 | AA33: 0
A34: =Histogramme_Entrée!C33 -> 0 | B34: =Histogramme_Entrée!S33 -> 0 | C34: 0 | D34: 0 | U34: 0 | V34: 0 | W34: 0 | Y34: 0 | Z34: 0 | AA34: 0
U35: 0 | V35: 0 | Y35: 0 | Z35: 0
A36: Somme | B36: =SUM(B3:B35) -> 65 | C36: =SUM(C3:C35) -> 1 | D36: X
T38: Ligne | U38: 1 | V38: 1 | W38: 1 | X38: =U38+1 -> 2 | Y38: =V38+1 -> 2 | Z38: 2 | AA38: 3 | AB38: 3 | AC38: 3 | AD38: 4 | AE38: 4 | AF38: 4 | AG38: 5 | AH38: 5 | AI38: 5 | AJ38: 6 | AK38: 6 | AL38: 6 | AM38: 7 | AN38: 7 | AO38: 7 | AP38: 8 | AQ38: 8 | AR38: 8 | AS38: 9 | AT38: 9 | AU38: 9 | AV38: 10 | AW38: 10 | AX38: 10 | AY38: 11 | AZ38: 11 | BA38: 11 | BB38: 12 | BC38: 12 | BD38: 12 | BE38: 13 | BF38: 13 | BG38: 13 | BH38: 14 | BI38: 14 | BJ38: 14 | BK38: 15 | BL38: 15 | BM38: 15 | BN38: 16 | BO38: 16 | BP38: 16 | BQ38: 17 | BR38: 17 | BS38: 17 | BT38: 18 | BU38: 18 | BV38: 18 | BW38: 19 | BX38: 19 | BY38: 19 | BZ38: 20 | CA38: 20 | CB38: 20 | CC38: 21 | CD38: 21 | CE38: 21 | CF38: 22 | CG38: 22 | CH38: 22 | CI38: 23 | CJ38: 23 | CK38: =CH38+1 -> 23 | CL38: 24 | CM38: 24 | CN38: 24 | CO38: 25 | CP38: 25 | CQ38: 25
T39: Colonne | U39: 1 | V39: 2 | W39: 3 | X39: =U39 -> 1 | Y39: =V39 -> 2 | Z39: 3 | AA39: 1 | AB39: 2 | AC39: 3 | AD39: 1 | AE39: 2 | AF39: 3 | AG39: 1 | AH39: 2 | AI39: 3 | AJ39: 1 | AK39: 2 | AL39: 3 | AM39: 1 | AN39: 2 | AO39: 3 | AP39: 1 | AQ39: 2 | AR39: 3 | AS39: 1 | AT39: 2 | AU39: 3 | AV39: 1 | AW39: 2 | AX39: 3 | AY39: 1 | AZ39: 2 | BA39: 3 | BB39: 1 | BC39: 2 | BD39: 3 | BE39: 1 | BF39: 2 | BG39: 3 | BH39: 1 | BI39: 2 | BJ39: 3 | BK39: 1 | BL39: 2 | BM39: 3 | BN39: 1 | BO39: 2 | BP39: 3 | BQ39: 1 | BR39: 2 | BS39: 3 | BT39: 1 | BU39: 2 | BV39: 3 | BW39: 1 | BX39: 2 | BY39: 3 | BZ39: 1 | CA39: 2 | CB39: 3 | CC39: 1 | CD39: 2 | CE39: 3 | CF39: 1 | CG39: 2 | CH39: 3 | CI39: 1 | CJ39: 2 | CK39: =CH39 -> 3 | CL39: 1 | CM39: 2 | CN39: 3 | CO39: 1 | CP39: 2 | CQ39: 3
T40: x | U40: =INDEX($U$4:$W$35,U38,U39) -> 0 | V40: =INDEX($U$4:$W$35,V38,V39) -> 0 | W40: 0 | X40: 0.5 | Y40: 0.5 | Z40: 0.5 | AA40: 2 | AB40: 2 | AC40: 2 | AD40: 5 | AE40: 5 | AF40: 5 | AG40: 10 | AH40: 10 | AI40: 10 | AJ40: 20 | AK40: 20 | AL40: 20 | AM40: 30 | AN40: 30 | AO40: 30 | AP40: 0 | AQ40: 0 | AR40: 0 | AS40: 0 | AT40: 0 | AU40: 0 | AV40: 0 | AW40: 0 | AX40: 0 | AY40: 0 | AZ40: 0 | BA40: 0 | BB40: 0 | BC40: 0 | BD40: 0 | BE40: 0 | BF40: 0 | BG40: 0 | BH40: 0 | BI40: 0 | BJ40: 0 | BK40: 0 | BL40: 0 | BM40: 0 | BN40: 0 | BO40: 0 | BP40: 0 | BQ40: 0 | BR40: 0 | BS40: 0 | BT40: 0 | BU40: 0 | BV40: 0 | BW40: 0 | BX40: 0 | BY40: 0 | BZ40: 0 | CA40: 0 | CB40: 0 | CC40: 0 | CD40: 0 | CE40: 0 | CF40: 0 | CG40: 0 | CH40: =INDEX($U$4:$W$35,CH38,CH39) -> 0 | CI40: 0 | CJ40: 0 | CK40: 0 | CL40: 0 | CM40: 0 | CN40: 0 | CO40: 0 | CP40: 0 | CQ40: 0
T41: y | U41: =INDEX($Y$4:$AA$35,U38,U39) -> 0 | V41: =INDEX($Y$4:$AA$35,V38,V39) -> 0 | W41: 0.3384615385 | X41: 0.3384615385 | Y41: 0 | Z41: 0.1435897436 | AA41: 0.1435897436 | AB41: 0 | AC41: 0.1076923077 | AD41: 0.1076923077 | AE41: 0 | AF41: 0.02769230769 | AG41: 0.02769230769 | AH41: 0 | AI41: 0.01076923077 | AJ41: 0.01076923077 | AK41: 0 | AL41: 0.004615384615 | AM41: 0.004615384615 | AN41: 0 | AO41: 0 | AP41: 0 | AQ41: 0 | AR41: 0 | AS41: 0 | AT41: 0 | AU41: 0 | AV41: 0 | AW41: 0 | AX41: 0 | AY41: 0 | AZ41: 0 | BA41: 0 | BB41: 0 | BC41: 0 | BD41: 0 | BE41: 0 | BF41: 0 | BG41: 0 | BH41: 0 | BI41: 0 | BJ41: 0 | BK41: 0 | BL41: 0 | BM41: 0 | BN41: 0 | BO41: 0 | BP41: 0 | BQ41: 0 | BR41: 0 | BS41: 0 | BT41: 0 | BU41: 0 | BV41: 0 | BW41: 0 | BX41: 0 | BY41: 0 | BZ41: 0 | CA41: 0 | CB41: 0 | CC41: 0 | CD41: 0 | CE41: 0 | CF41: 0 | CG41: 0 | CH41: =INDEX($Y$4:$AA$35,CH38,CH39) -> 0 | CI41: 0 | CJ41: 0 | CK41: 0 | CL41: 0 | CM41: 0 | CN41: 0 | CO41: 0 | CP41: 0 | CQ41: 0
